fUSD/lending_fUSD_20240118
["ID","MTS","AMOUNT","RATE_DAILY","PERIOD"]
[312054779,1705585835202,-156.82,0.00022812,2]
[312054780,1705585835212,-500.0,0.00022815,2]
[312054781,1705585835222,-200.0,0.00022815,2]
[312054782,1705585835233,-500.0,0.00022816,2]
[312054783,1705585835243,-200.0,0.00022816,2]
[312054784,1705585835255,-200.0,0.00022816,2]
[312054785,1705585835264,-200.0,0.00022816,2]
[312054786,1705585835274,-800.0,0.00022816,2]
[312054787,1705585835283,-150.0,0.00022817,2]
[312054788,1705585835294,-150.0,0.0002282,2]
[312054789,1705585835305,-150.0,0.00022849,2]
[312054790,1705585835315,-150.0,0.00022851,2]
[312054791,1705585835325,-150.0,0.00022854,2]
[312054792,1705585835337,-300.0,0.00022869,2]
[312054793,1705585835348,-691.64691173,0.00022879,2]
[312054794,1705585835358,-4027.67276696,0.00022879,2]
[312054795,1705585835368,-4365.72599689,0.00022879,2]
[312054796,1705585835380,-523.43271801,0.00022879,2]
[312054797,1705585835390,-229.16732981,0.00022879,2]
[312054798,1705585835400,-242.32825192,0.00022879,2]
[312054799,1705585835409,-311.59150887,0.00022879,2]
[312054800,1705585835419,-331.31849362,0.00022879,2]
[312054801,1705585835429,-231.13240909,0.0002288,2]
[312054802,1705585835438,-349.88842846,0.0002288,2]
[312054803,1705585835448,-500.331,0.00022881,2]
[312054804,1705585835457,-222.545,0.00022881,2]
[312054805,1705585835466,-835.0,0.00022881,2]
[312054806,1705585835475,-1852.0,0.00022881,2]
[312054807,1705585835485,-945.0,0.00022881,2]
[312054808,1705585835494,-1252.0,0.00022881,2]
[312054809,1705585835504,-1234.0,0.00022881,2]
[312054810,1705585835513,-203.763,0.00022881,2]
[312054811,1705585835522,-1930.0,0.00022881,2]
[312054812,1705585835532,-996.0,0.00022881,2]
[312054813,1705585835542,-425.0,0.00022881,2]
[312054814,1705585835551,-318.0,0.00022881,2]
[312054815,1705585835561,-879.0,0.00022881,2]
[312054816,1705585835570,-235.0,0.00022881,2]
[312054817,1705585835579,-507.0,0.00022881,2]
[312054818,1705585835589,-249.741,0.00022881,2]
[312054819,1705585835598,-2272.0,0.00022881,2]
[312054820,1705585835607,-5768.242568,0.00022881,2]
[312054821,1705585835985,-518.5440731,0.00022881,2]
[312054822,1705585835997,-1844.6943589,0.00022881,2]
[312054823,1705585836006,-19697.0,0.00022881,2]
[312054824,1705585836015,-5888.336,0.00022881,2]
[312054825,1705585836025,-4202.612,0.00022881,2]
[312054826,1705585836035,-5606.504,0.00022881,2]
[312054827,1705585836044,-2904.0,0.00022881,2]
[312054828,1705585836053,-42205.0,0.00022881,2]
[312054829,1705585836062,-1068.075,0.00022881,2]
[312054830,1705585836071,-155.07307468,0.00022884,2]
[312054831,1705585836080,-196.91428267,0.00022884,2]
[312054832,1705585836090,-500.0,0.00022885,2]
[312054833,1705585836100,-500.0,0.00022885,2]
[312054834,1705585836109,-500.0,0.00022885,2]
[312054835,1705585836119,-500.0,0.00022885,2]
[312054836,1705585836130,-500.0,0.00022885,2]
[312054837,1705585836139,-500.0,0.00022885,2]
[312054838,1705585836149,-500.0,0.00022885,2]
[312054839,1705585836159,-500.0,0.00022885,2]
[312054840,1705585836169,-500.0,0.00022885,2]
[312054841,1705585836178,-500.0,0.00022885,2]
[312054842,1705585836187,-500.0,0.00022885,2]
[312054843,1705585836197,-500.0,0.00022885,2]
[312054844,1705585836207,-500.0,0.00022885,2]
[312054845,1705585836216,-500.0,0.00022885,2]
[312054846,1705585836225,-500.0,0.00022885,2]
[312054847,1705585836235,-500.0,0.00022885,2]
[312054848,1705585836246,-500.0,0.00022885,2]
[312054849,1705585836255,-500.0,0.00022885,2]
[312054850,1705585836265,-500.0,0.00022885,2]
[312054851,1705585836274,-512.2527,0.00022885,2]
[312054852,1705585836284,-500.0,0.00022885,2]
[312054853,1705585836293,-500.0,0.00022885,2]
[312054854,1705585836302,-500.0,0.00022885,2]
[312054855,1705585836311,-500.0,0.00022885,2]
[312054856,1705585836321,-500.0,0.00022885,2]
[312054857,1705585836332,-268.7223,0.00022885,2]
[312054858,1705585836342,-1000.0,0.00022885,2]
[312054859,1705585836352,-1000.0,0.00022885,2]
[312054860,1705585836362,-1000.0,0.00022885,2]
[312054861,1705585836371,-1000.0,0.00022885,2]
[312054862,1705585836381,-1000.0,0.00022885,2]
[312054863,1705585836390,-1000.0,0.00022885,2]
[312054864,1705585836400,-1000.0,0.00022885,2]
[312054865,1705585836410,-1000.0,0.00022885,2]
[312054866,1705585836419,-1000.0,0.00022885,2]
[312054867,1705585836428,-1000.0,0.00022885,2]
[312054868,1705585836438,-1000.0,0.00022885,2]
[312054869,1705585836447,-1000.0,0.00022885,2]
[312054870,1705585836456,-1000.0,0.00022885,2]
[312054871,1705585836466,-1000.0,0.00022885,2]
[312054872,1705585836475,-1000.0,0.00022885,2]
[312054873,1705585836484,-1000.0,0.00022885,2]
[312054874,1705585836493,-1000.0,0.00022885,2]
[312054875,1705585836502,-1000.0,0.00022885,2]
[312054876,1705585836512,-1000.0,0.00022885,2]
[312054877,1705585836522,-1000.0,0.00022885,2]
[312054878,1705585836532,-1000.0,0.00022885,2]
[312054879,1705585836542,-1000.0,0.00022885,2]
[312054880,1705585836551,-1000.0,0.00022885,2]
[312054881,1705585836560,-1000.0,0.00022885,2]
[312054882,1705585836570,-1000.0,0.00022885,2]
[312054883,1705585836580,-1000.0,0.00022885,2]
[312054884,1705585836590,-1000.0,0.00022885,2]
[312054885,1705585836600,-1000.0,0.00022885,2]
[312054886,1705585836611,-1000.0,0.00022885,2]
[312054887,1705585836621,-1000.0,0.00022885,2]
[312054888,1705585836633,-1000.0,0.00022885,2]
[312054889,1705585836644,-1000.0,0.00022885,2]
[312054890,1705585836653,-1000.0,0.00022885,2]
[312054891,1705585836664,-1000.0,0.00022885,2]
[312054892,1705585836673,-1000.0,0.00022885,2]
[312054893,1705585836682,-1000.0,0.00022885,2]
[312054894,1705585836691,-1000.0,0.00022885,2]
[312054895,1705585836701,-150.0,0.00022895,2]
[312054896,1705585836711,-245000.0,0.00022896,2]
[312054897,1705585836720,-854.35044277,0.00022896,2]
[312054898,1705585836730,-167.62510282,0.00022896,2]
[312054899,1705585836739,-155.77733666,0.00022896,2]
[312054900,1705585836749,-1022.80644919,0.00022896,2]
[312054901,1705585836758,-191.5975076,0.00022896,2]
[312054902,1705585836768,-654.93538944,0.00022896,2]
[312054903,1705585836778,-385.45093028,0.00022897,2]
[312054904,1705585836788,-171.82723864,0.00022898,6]
[312054905,1705585836797,-68098.6767,0.00022898,2]
[312054906,1705585836806,-20825.66704946,0.00022899,2]
[312054907,1705585836815,-33133.569979,0.000229,2]
[312054908,1705585836824,-250.0,0.000229,2]
[312054909,1705585836834,-163.00818749,0.000229,2]
[312054910,1705585836843,-200.0,0.000229,8]
[312054911,1705585836853,-150.0,0.00022901,2]
[312054912,1705585836862,-150.0,0.00022918,2]
[312054913,1705585836871,-150.0,0.0002292,2]
[312054914,1705585836883,-150.0,0.00022921,2]
[312054915,1705585836892,-150.0,0.00022933,2]
[312054916,1705585836902,-150.0,0.00022938,2]
[312054917,1705585836911,-150.0,0.00022939,2]
[312054918,1705585836921,-150.0,0.00022948,2]
[312054919,1705585836932,-150.0,0.00022961,2]
[312054920,1705585836941,-150.0,0.00022967,2]
[312054921,1705585836952,-150.0,0.00022969,2]
[312054922,1705585836961,-150.0,0.0002297,2]
[312054923,1705585836971,-150.0,0.00022972,2]
[312054924,1705585836980,-150.0,0.00022973,2]
[312054925,1705585836991,-150.0,0.00022974,2]
[312054926,1705585837001,-150.0,0.00022983,2]
[312054927,1705585837011,-14757.0,0.00022986,2]
[312054928,1705585837020,-992.10827887,0.00022995,4]
[312054929,1705585837030,-563.0,0.00022996,2]
[312054930,1705585837039,-156.0,0.00022996,2]
[312054931,1705585837048,-150782.91913287,0.00022996,3]
[312054932,1705585837062,-981.98800468,0.00022996,3]
[312054934,1705585837919,-588.99961556,0.00022885,2]
[312054935,1705585837931,-411.00038444,0.00022885,2]
[312054936,1705585837941,-422.4902,0.00022885,2]
[312054937,1705585837950,-677.48546916,0.00022996,3]
[312054938,1705585838095,-456.35152185,0.00021601,2]
[312054939,1705585838208,-275.00847815,0.00021601,2]
[312054940,1705585838217,-791056.34501629,0.00022996,3]
[312054941,1705585838227,-151.0,0.00022996,7]
[312054942,1705585838237,-374.03521976,0.00022996,2]
[312054943,1705585838247,-156.81769853,0.00022996,2]
[312054944,1705585838257,-2894.68220287,0.00022996,2]
[312054945,1705585838266,-178.74270135,0.00022996,2]
[312054947,1705585838275,-309.98838975,0.00022996,2]
[312054949,1705585838285,-156.81259681,0.00022996,2]
[312054951,1705585838295,-254.7545,0.00022996,2]
[312054953,1705585838304,-371.98608374,0.00022996,2]
[312054955,1705585838313,-1442.43348609,0.00022996,2]
[312054956,1705585838323,-195.18154934,0.00022996,2]
[312054958,1705585838332,-166.00417017,0.00022996,2]
[312054960,1705585838342,-386.26961565,0.00022996,2]
[312054962,1705585838351,-833136.38301986,0.00022996,2]
[312054964,1705585838360,-599.79806811,0.00022996,2]
[312054966,1705585838370,-397.21856661,0.00022996,2]
[312054968,1705585838380,-157.18291129,0.00022996,2]
[312054970,1705585838389,-208.152724,0.00022996,2]
[312054972,1705585838398,-200.0,0.00022996,2]
[312054974,1705585838407,-251.276768,0.00022996,7]
[312054976,1705585838417,-251.276768,0.00022996,7]
[312054978,1705585838426,-155.0,0.00022997,2]
[312054980,1705585838435,-6436.33635297,0.00022997,2]
[312054982,1705585838444,-528.57068135,0.00022997,2]
[312054984,1705585838453,-155.39758731,0.00022997,2]
[312054986,1705585838462,-155.42266238,0.00022997,2]
[312054988,1705585838471,-155.88936956,0.00022997,2]
[312054990,1705585838480,-269.60864901,0.00022997,2]
[312054992,1705585838489,-155.7589912,0.00022997,2]
[312054994,1705585838498,-271.34237792,0.00022997,2]
[312054996,1705585838507,-1040.28791122,0.00022997,2]
[312054998,1705585838517,-156.25685947,0.00022997,2]
[312055001,1705585838526,-672.82527924,0.00022997,2]
[312055003,1705585838536,-250.02290447,0.00022997,2]
[312055005,1705585838545,-150.0,0.00022997,2]
[312055007,1705585838554,-9974.456792,0.00022997,2]
[312055009,1705585838563,-1353.9481958,0.00022997,2]
[312055011,1705585838572,-54596.9078567,0.00022997,2]
[312055013,1705585838582,-156.68200812,0.00022998,2]
[312055015,1705585838590,-155.56428189,0.00022998,2]
[312055017,1705585838599,-155.42252281,0.00022998,2]
[312055019,1705585838608,-1374.32706454,0.00022998,2]
[312055021,1705585838617,-156.07730311,0.00022998,2]
[312055023,1705585838626,-419006.22380327,0.00022998,2]
[312055025,1705585838635,-4262.60866632,0.00022998,2]
[312055027,1705585838644,-972.84147411,0.00022998,2]
[312055028,1705585838654,-244.22314293,0.00022998,2]
[312055031,1705585838663,-156.72341458,0.00022998,2]
[312055032,1705585838672,-3849.91637634,0.00022998,2]
[312055034,1705585838681,-163.63015791,0.00022998,2]
[312055036,1705585838691,-3338.57654665,0.00022998,2]
[312055038,1705585838700,-234.85086633,0.00022998,2]
[312055039,1705585838709,-170.56114582,0.00022998,2]
[312055040,1705585838718,-280.99538958,0.00022998,2]
[312055041,1705585838728,-196.155894,0.00022998,2]
[312055042,1705585838737,-1970.50192539,0.00022998,2]
[312055043,1705585838747,-155.47264453,0.00022998,2]
[312055044,1705585838756,-235.51079248,0.00022998,2]
[312055045,1705585838765,-155.71114087,0.00022998,2]
[312055046,1705585838774,-156.27344873,0.00022998,2]
[312055048,1705585838783,-2131.66263178,0.00022998,2]
[312055050,1705585838792,-720.68,0.00022998,2]
[312055052,1705585838802,-151.0,0.00022998,7]
[312055054,1705585838811,-151.0,0.00022998,7]
[312055056,1705585838821,-185.12265,0.00022998,7]
[312055058,1705585838830,-185.12265,0.00022998,7]
[312055060,1705585838839,-151.0,0.00022998,7]
[312055062,1705585838849,-151.0,0.00022998,7]
[312055064,1705585838858,-155.172277,0.00022998,7]
[312055066,1705585838867,-151.0,0.00022998,7]
[312055068,1705585838877,-151.0,0.00022998,7]
[312055070,1705585838886,-251.276768,0.00022998,7]
[312055072,1705585838896,-251.276768,0.00022998,7]
[312055074,1705585838905,-151.0,0.00022998,7]
[312055076,1705585838914,-3296.21810704,0.00022999,2]
[312055078,1705585838923,-150.01,0.00022999,2]
[312055080,1705585838933,-289.9171875,0.00022999,2]
[312055082,1705585838942,-290.73363343,0.00022999,2]
[312055084,1705585838952,-289.9171875,0.00022999,2]
[312055086,1705585838961,-290.73363343,0.00022999,2]
[312055088,1705585838970,-289.9171875,0.00022999,2]
[312055090,1705585838979,-290.73363343,0.00022999,2]
[312055092,1705585838988,-289.9171875,0.00022999,2]
[312055094,1705585838997,-290.73363343,0.00022999,2]
[312055096,1705585839006,-289.9171875,0.00022999,2]
[312055098,1705585839015,-290.73363343,0.00022999,2]
[312055100,1705585839025,-226419.36567111,0.00023,2]
[312055102,1705585839034,-492802.33296081,0.00023,2]
[312055104,1705585839043,-719148.68201422,0.00023,2]
[312055106,1705585839052,-176463.43377425,0.00023,2]
[312055108,1705585839061,-66551.26272042,0.00023,2]
[312055110,1705585839071,-133545.62823506,0.00023,2]
[312055112,1705585839080,-169437.15389519,0.00023,2]
[312055114,1705585839089,-265891.41957842,0.00023,2]
[312055172,1705585839635,-467.77368,0.00023,2]
[312055262,1705585840421,-851.92,0.00023,2]
[312055264,1705585840434,-500.0,0.00023,2]
[312055270,1705585840475,345.66525419,0.000216,2]
[312055277,1705585840537,-404.02937011,0.00023,2]
[312055394,1705585843749,-10950.56321201,0.00023,2]
[312055395,1705585843808,-342.28929395,0.00023,2]
[312055396,1705585843867,-6755.30050113,0.00023,2]
[312055397,1705585843989,-264.83496321,0.00023,2]
[312055398,1705585844000,-335.66511754,0.00023,2]
[312055401,1705585844432,-153688.29928109,0.00023,2]
[312055402,1705585844490,-6326.99332579,0.00023,2]
[312055403,1705585844502,-12929.4,0.00023,2]
[312055413,1705585846173,-300.02,0.00022999,2]
[312055414,1705585846182,-277.07056143,0.00023,2]
[312055436,1705585846533,468.82049449,0.000216,2]
[312055438,1705585900077,157.01152314,0.000216,2]
[312055439,1705585980505,1842.98847686,0.000216,2]
[312055440,1705585980528,701.16977657,0.000216,2]
[312055441,1705585998501,872.22933145,0.000216,2]
[312055442,1705586090049,219.99906844,0.000216,2]
[312055443,1705586143257,206.60182354,0.000216,2]
[312055444,1705586143280,941.39817646,0.000216,2]
[312055445,1705586238428,160.11,0.00019851,2]
[312055446,1705586450859,294.6,0.00021641,10]
[312055447,1705586613969,206.0,0.00021171,2]
[312055448,1705586733854,150.0,0.00020688,2]
[312055449,1705586734144,150.0,0.00020831,4]
[312055450,1705586734604,150.0,0.00020975,4]
[312055451,1705586734898,150.0,0.00021119,4]
[312055452,1705586735239,92.49182354,0.00021262,4]
[312055453,1705586735262,57.50817646,0.00021262,4]
[312055454,1705586735793,150.0,0.00021406,4]
[312055455,1705586736518,150.0,0.0002155,4]
[312055456,1705586804244,150.0,0.00021527,2]
[312055457,1705586804963,200.0,0.00021527,2]
[312055458,1705586909065,169.09,0.00021548,2]
[312055459,1705586913802,21.89364708,0.00021171,2]
[312055460,1705586913825,183.10635292,0.00021171,2]
[312055461,1705586914787,-150.0,0.00021603,2]
[312055497,1705587032105,-255.4812832,0.00021604,2]
[312055498,1705587032164,-1183.42344449,0.00021604,2]
[312055499,1705587032176,-2746.68056339,0.00021604,2]
[312055500,1705587032374,-864.68441708,0.00021604,2]
[312055501,1705587032387,-640.06759,0.00021604,2]
[312055503,1705587032399,-1150.0,0.00021604,2]
[312055567,1705587038047,-1273.19236374,0.00021604,2]
[312055569,1705587038059,-462.54491482,0.00021604,2]
[312055575,1705587038108,-381.31783945,0.00021604,2]
[312055580,1705587038168,-11042.60758383,0.00021604,2]
[312055581,1705587038177,-718.62,0.00021604,2]
[312055582,1705587038186,-727.03,0.00021605,2]
[312055583,1705587038195,-718.57,0.00021605,2]
[312055584,1705587038204,-728.63,0.00021605,2]
[312055585,1705587038214,-715.03,0.00021605,2]
[312055586,1705587038223,-734.54,0.00021605,2]
[312055587,1705587038232,-725.4,0.00021605,2]
[312055588,1705587038241,-722.53,0.00021605,2]
[312055589,1705587038250,-710.6,0.00021605,2]
[312055590,1705587038259,-735.11,0.00021605,2]
[312055591,1705587038269,-721.55,0.00021605,2]
[312055592,1705587038278,-727.24,0.00021605,2]
[312055593,1705587038287,-735.43,0.00021605,2]
[312055594,1705587038296,-710.63,0.00021605,2]
[312055595,1705587038305,-713.11,0.00021605,2]
[312055596,1705587038315,-157.02,0.00021606,2]
[312055597,1705587038324,-288.0,0.00021609,2]
[312055598,1705587038334,-367.49,0.00021619,2]
[312055599,1705587038343,-167.39,0.00021641,2]
[312055600,1705587038352,-150.0,0.00021693,4]
[312055601,1705587038362,-2550.72544057,0.00021743,2]
[312055602,1705587038371,-712.0,0.00021788,2]
[312055603,1705587038380,-150.0,0.00021837,4]
[312055604,1705587038390,-157.02,0.00021876,2]
[312055605,1705587038400,-159.9,0.00021882,2]
[312055606,1705587038409,-250.0,0.00021918,2]
[312055607,1705587038418,-726.79,0.00021969,2]
[312055608,1705587038427,-150.0,0.00021981,4]
[312055609,1705587038437,-734.07,0.00022066,2]
[312055610,1705587038446,-150.0,0.00022124,4]
[312055612,1705587038455,-157.02,0.00022146,2]
[312055614,1705587038465,-722.45,0.0002219,2]
[312055616,1705587038474,-1270.10140391,0.00022247,2]
[312055618,1705587038483,-150.0,0.00022268,4]
[312055619,1705587038492,-167.39,0.0002229,2]
[312055622,1705587038502,-731.69,0.00022316,2]
[312055624,1705587038511,-717.68,0.00022316,2]
[312055626,1705587038520,-716.21,0.00022316,2]
[312055628,1705587038530,-736.28,0.00022316,2]
[312055630,1705587038539,-714.34,0.00022316,2]
[312055632,1705587038548,-150.0,0.00022412,4]
[312055634,1705587038558,-157.02,0.00022416,2]
[312055636,1705587038568,-217.03220304,0.000225,3]
[312055638,1705587038577,-2302.079661,0.000225,2]
[312055640,1705587038586,-1270.10140391,0.00022554,2]
[312055642,1705587038596,-150.0,0.00022555,4]
[312055643,1705587038605,-367.49,0.00022597,2]
[312055644,1705587038616,-1000.0,0.000226,2]
[312055645,1705587038626,-157.02,0.00022686,2]
[312055647,1705587038635,-150.0,0.00022699,4]
[312055649,1705587038645,-500.0,0.00022699,2]
[312055651,1705587038655,-500.0,0.00022708,2]
[312055653,1705587038665,-1830.9866,0.00022715,2]
[312055655,1705587038675,-500.0,0.00022717,2]
[312055657,1705587038684,-500.0,0.00022726,2]
[312055659,1705587038694,-150.0,0.00022726,2]
[312055661,1705587038703,-150.0,0.00022729,2]
[312055663,1705587038713,-150.0,0.00022729,2]
[312055665,1705587038722,-190.67946795,0.00022729,2]
[312055667,1705587038732,-500.0,0.00022735,2]
[312055669,1705587038741,-150.0,0.00022735,2]
[312055671,1705587038750,-150.0,0.00022737,2]
[312055673,1705587038759,-300.0,0.00022737,2]
[312055675,1705587038769,-150.0,0.00022738,2]
[312055677,1705587038778,-150.0,0.0002274,2]
[312055679,1705587038787,-150.0,0.00022742,2]
[312055681,1705587038796,-150.0,0.00022742,2]
[312055683,1705587038807,-150.0,0.00022743,2]
[312055685,1705587038816,-150.0,0.00022743,2]
[312055687,1705587038825,-500.0,0.00022743,2]
[312055689,1705587038834,-150.0,0.00022745,2]
[312055691,1705587038843,-150.0,0.00022746,2]
[312055693,1705587038851,-150.0,0.00022749,2]
[312055695,1705587038860,-150.0,0.00022749,2]
[312055697,1705587038869,-150.0,0.00022752,2]
[312055699,1705587038878,-300.0,0.00022752,2]
[312055701,1705587038887,-500.0,0.00022752,2]
[312055703,1705587038897,-150.0,0.00022753,2]
[312055705,1705587038906,-150.0,0.00022753,2]
[312055707,1705587038915,-150.0,0.00022759,2]
[312055709,1705587038924,-150.0,0.0002276,2]
[312055711,1705587038934,-150.0,0.0002276,2]
[312055713,1705587038944,-500.0,0.00022761,2]
[312055715,1705587038952,-300.0,0.00022761,2]
[312055717,1705587038961,-150.0,0.00022764,2]
[312055719,1705587038970,-150.0,0.00022766,2]
[312055721,1705587038979,-156.0,0.00022766,2]
[312055723,1705587038989,-150.0,0.00022768,2]
[312055725,1705587038998,-500.0,0.0002277,2]
[312055727,1705587039006,-150.0,0.00022774,2]
[312055729,1705587039015,-150.0,0.00022775,2]
[312055731,1705587039024,-500.0,0.00022779,2]
[312055733,1705587039033,-150.0,0.00022779,2]
[312055735,1705587039043,-150.0,0.00022782,2]
[312055737,1705587039052,-150.0,0.00022784,2]
[312055739,1705587039063,-150.0,0.00022787,2]
[312055741,1705587039072,-500.0,0.00022787,2]
[312055743,1705587039081,-150.0,0.00022788,2]
[312055745,1705587039091,-573.1673,0.00022789,2]
[312055747,1705587039100,-4079.5137,0.0002279,2]
[312055749,1705587039109,-150.0,0.00022791,2]
[312055751,1705587039118,-150.0,0.00022791,2]
[312055753,1705587039127,-186.49286773,0.00022791,2]
[312055755,1705587039135,-150.0,0.00022792,2]
[312055757,1705587039144,-150.0,0.00022792,2]
[312055759,1705587039154,-500.0,0.00022796,2]
[312055761,1705587039163,-2881.0,0.000228,2]
[312055763,1705587039172,-1000.0,0.000228,3]
[312055765,1705587039181,-150.0,0.00022802,2]
[312055767,1705587039190,-150.0,0.00022803,2]
[312055769,1705587039198,-500.0,0.00022805,2]
[312055771,1705587039207,-160.0,0.00022805,2]
[312055773,1705587039216,-16000.0,0.00022805,2]
[312055775,1705587039225,-150.0,0.00022812,2]
[312055777,1705587039233,-150.0,0.00022814,2]
[312055779,1705587039243,-500.0,0.00022815,2]
[312055781,1705587039253,-500.0,0.00022815,2]
[312055783,1705587039262,-200.0,0.00022815,2]
[312055785,1705587039271,-500.0,0.00022815,2]
[312055787,1705587039280,-500.0,0.00022815,2]
[312055789,1705587039289,-500.0,0.00022815,2]
[312055791,1705587039298,-500.0,0.00022815,2]
[312055793,1705587039308,-500.0,0.00022815,2]
[312055795,1705587039317,-500.0,0.00022815,2]
[312055797,1705587039326,-500.0,0.00022815,2]
[312055799,1705587039337,-500.0,0.00022815,2]
[312055802,1705587039347,-500.0,0.00022816,2]
[312055804,1705587039356,-500.0,0.00022816,2]
[312055806,1705587039367,-500.0,0.00022816,2]
[312055808,1705587039376,-200.0,0.00022816,2]
[312055810,1705587039385,-500.0,0.00022816,2]
[312055812,1705587039395,-500.0,0.00022816,2]
[312055813,1705587039405,-500.0,0.00022816,2]
[312055814,1705587039415,-500.0,0.00022816,2]
[312055815,1705587039424,-500.0,0.00022816,2]
[312055816,1705587039434,-500.0,0.00022816,2]
[312055817,1705587039444,-200.0,0.00022816,2]
[312055818,1705587039453,-800.0,0.00022816,2]
[312055819,1705587039463,-200.0,0.00022816,2]
[312055820,1705587039472,-200.0,0.00022816,2]
[312055821,1705587039482,-200.0,0.00022816,2]
[312055823,1705587039492,-150.0,0.00022817,2]
[312055825,1705587039502,-150.0,0.00022821,2]
[312055827,1705587039511,-152.84068148,0.00022821,2]
[312055829,1705587039520,-150.0,0.00022825,2]
[312055832,1705587039538,-150.0,0.00022826,2]
[312055834,1705587039552,-186.49286772,0.00022827,2]
[312055837,1705587039565,-150.0,0.00022828,2]
[312055839,1705587039578,-150.0,0.0002283,2]
[312055842,1705587039591,-250.3253178,0.00022833,2]
[312055844,1705587039604,-150.0,0.00022837,2]
[312055846,1705587039614,-150.0,0.0002284,2]
[312055848,1705587039625,-150.0,0.00022842,2]
[312055850,1705587039638,-300.0,0.00022842,2]
[312055853,1705587039651,-150.0,0.00022843,4]
[312055855,1705587039663,-150.0,0.00022843,2]
[312055857,1705587039676,-150.0,0.00022844,2]
[312055860,1705587039688,-150.0,0.00022844,2]
[312055862,1705587039700,-150.0,0.00022844,2]
[312055864,1705587039712,-150.0,0.00022849,2]
[312055867,1705587039724,-150.0,0.00022849,2]
[312055869,1705587039737,-5575.0,0.00022849,2]
[312055871,1705587039748,-566.112,0.00022849,2]
[312055873,1705587039757,-461.948,0.00022849,2]
[312055875,1705587039769,-2272.0,0.00022849,2]
[312055878,1705587039781,-16169.204,0.00022849,2]
[312055880,1705587039793,-150.0,0.00022853,2]
[312055882,1705587039804,-150.0,0.00022853,2]
[312055884,1705587039816,-943.35347956,0.00022853,2]
[312055887,1705587039827,-150.0,0.00022856,2]
[312055889,1705587039839,-150.0,0.00022857,2]
[312055891,1705587039851,-300.0,0.00022858,2]
[312055894,1705587039862,-150.0,0.00022859,2]
[312055896,1705587039874,-150.0,0.00022859,2]
[312055898,1705587039884,-150.0,0.0002286,2]
[312055900,1705587039894,-186.49286772,0.00022864,2]
[312055902,1705587039903,-943.35347956,0.00022869,2]
[312055905,1705587039917,-150.0,0.0002287,2]
[312055907,1705587039928,-150.0,0.00022871,2]
[312055909,1705587039939,-150.0,0.00022878,2]
[312055911,1705587039952,-150.0,0.00022879,2]
[312055914,1705587039964,-362.842,0.00022881,2]
[312055916,1705587039975,-150.0,0.00022881,2]
[312055918,1705587039988,-150.0,0.00022881,2]
[312055921,1705587039998,-328.12380494,0.00022882,2]
[312055923,1705587040010,-150.0,0.00022883,2]
[312055925,1705587040021,-5800.0,0.00022883,2]
[312055927,1705587040033,-943.35347956,0.00022884,2]
[312055930,1705587040044,-150.0,0.00022885,2]
[312055932,1705587040056,-939.56400894,0.00022887,2]
[312055934,1705587040068,-2774.19153734,0.00022887,2]
[312055937,1705587040081,-3193.48247001,0.00022887,2]
[312055939,1705587040093,-1362.90944747,0.00022887,2]
[312055941,1705587040105,-12294.16339703,0.00022888,2]
[312055944,1705587040116,-173.51625013,0.00022889,2]